[Event "Early-Titled-Tuesday-Blitz-March-19-2024"]
[Site "Chess.com"]
[Date "2024.03.19"]
[Round "1"]
[White "AwareIdea"]
[Black "Kacparov"]
[Result "0-1"]
[WhiteElo "2521"]
[BlackElo "2923"]
[TimeControl "180+1"]
[EndTime "8:06:39 PDT"]
[Termination "Kacparov won by resignation"]

1. d4 {[%clk 0:03:00.9]} 1... Nf6 {[%clk 0:02:59.8]} 2. c4 {[%clk 0:02:58.9]}
2... e6 {[%clk 0:03:00.1]} 3. g3 {[%clk 0:02:58]} 3... Bb4+ {[%clk 0:02:59.8]}
4. Bd2 {[%clk 0:02:58]} 4... a5 {[%clk 0:03:00.2]} 5. Bg2 {[%clk 0:02:56.5]}
5... O-O {[%clk 0:03:00.4]} 6. Bxb4 {[%clk 0:02:56.2]} 6... axb4 {[%clk
0:03:00.5]} 7. a3 {[%clk 0:02:56.4]} 7... d6 {[%clk 0:02:57.5]} 8. Nf3 {[%clk
0:02:54.5]} 8... Nc6 {[%clk 0:02:57.4]} 9. O-O {[%clk 0:02:53.8]} 9... e5 {[%clk
0:02:56.5]} 10. d5 {[%clk 0:02:41.4]} 10... Ne7 {[%clk 0:02:56.1]} 11. Qb3
{[%clk 0:02:38.2]} 11... bxa3 {[%clk 0:02:53.8]} 12. Nxa3 {[%clk 0:02:39.1]}
12... Nf5 {[%clk 0:02:26.2]} 13. Rfd1 {[%clk 0:02:34.4]} 13... Qe7 {[%clk
0:02:20.3]} 14. h3 {[%clk 0:02:33.2]} 14... h5 {[%clk 0:02:16.5]} 15. e3 {[%clk
0:02:28.7]} 15... e4 {[%clk 0:02:12.2]} 16. Nd4 {[%clk 0:02:27.5]} 16... Nxd4
{[%clk 0:02:08.7]} 17. Rxd4 {[%clk 0:02:28.4]} 17... Bf5 {[%clk 0:02:02.8]} 18.
Rdd1 {[%clk 0:02:23.8]} 18... Nd7 {[%clk 0:01:55.1]} 19. Nb5 {[%clk 0:02:20.9]}
19... Nc5 {[%clk 0:01:54.5]} 20. Qc3 {[%clk 0:02:17.5]} 20... Qd7 {[%clk
0:01:48.4]} 21. Kh2 {[%clk 0:02:06.6]} 21... Nd3 {[%clk 0:01:48.6]} 22. Qd2
{[%clk 0:02:02.4]} 22... Ne5 {[%clk 0:01:46.6]} 23. Nd4 {[%clk 0:01:51.4]} 23...
Nxc4 {[%clk 0:01:35.3]} 24. Qc2 {[%clk 0:01:51]} 24... Ne5 {[%clk 0:01:27.2]}
25. Nxf5 {[%clk 0:01:46.9]} 25... Qxf5 {[%clk 0:01:28.1]} 26. Bxe4 {[%clk
0:01:42.1]} 26... Qf6 {[%clk 0:01:25.6]} 27. Bg2 {[%clk 0:01:33.8]} 27... h4
{[%clk 0:01:21.5]} 28. g4 {[%clk 0:01:32.6]} 28... Qe7 {[%clk 0:01:15.7]} 29.
Kg1 {[%clk 0:01:22.9]} 29... Rfc8 {[%clk 0:01:11.8]} 30. Rxa8 {[%clk 0:01:15.5]}
30... Rxa8 {[%clk 0:01:11.8]} 31. Rc1 {[%clk 0:01:16.4]} 31... Rc8 {[%clk
0:01:09.4]} 32. f4 {[%clk 0:01:12.5]} 32... Nd7 {[%clk 0:01:09.4]} 33. Qc3
{[%clk 0:01:07.6]} 33... g6 {[%clk 0:01:07.9]} 34. b4 {[%clk 0:01:04.4]} 34...
Ra8 {[%clk 0:01:06.4]} 35. Rc2 {[%clk 0:01:01.5]} 35... Nf6 {[%clk 0:01:00.1]}
36. Qd4 {[%clk 0:00:58.1]} 36... Ra3 {[%clk 0:00:57.8]} 37. Kf2 {[%clk
0:00:57.8]} 37... Ne8 {[%clk 0:00:54.6]} 38. g5 {[%clk 0:00:52.8]} 38... Qd7
{[%clk 0:00:53.6]} 39. Qe4 {[%clk 0:00:43.2]} 39... Ng7 {[%clk 0:00:51.8]} 40.
Re2 {[%clk 0:00:31.3]} 40... Nf5 {[%clk 0:00:50.9]} 41. Qf3 {[%clk 0:00:27]}
41... Qb5 {[%clk 0:00:49.3]} 42. Qe4 {[%clk 0:00:24.6]} 42... Qxe2+ {[%clk
0:00:47.9]} 43. Kxe2 {[%clk 0:00:23.8]} 43... Ng3+ {[%clk 0:00:48.4]} 44. Kf2
{[%clk 0:00:24.1]} 44... Nxe4+ {[%clk 0:00:48.9]} 45. Bxe4 {[%clk 0:00:25]}
45... Rb3 {[%clk 0:00:49.2]} 0-1

[Event "Early-Titled-Tuesday-Blitz-March-19-2024"]
[Site "Chess.com"]
[Date "2024.03.19"]
[Round "1"]
[White "hitaman"]
[Black "Gryffindorac8"]
[Result "1-0"]
[WhiteElo "2712"]
[BlackElo "2360"]
[TimeControl "180+1"]
[EndTime "8:06:39 PDT"]
[Termination "hitaman won by resignation"]

1. e4 {[%clk 0:03:00.9]} 1... c5 {[%clk 0:02:59.4]} 2. Nf3 {[%clk 0:02:55.8]}
2... d6 {[%clk 0:02:59.1]} 3. d4 {[%clk 0:02:55.3]} 3... cxd4 {[%clk 0:03:00]}
4. Nxd4 {[%clk 0:02:56.2]} 4... Nf6 {[%clk 0:02:59.9]} 5. Nc3 {[%clk 0:02:56.9]}
5... a6 {[%clk 0:02:59.9]} 6. a4 {[%clk 0:02:55.3]} 6... e5 {[%clk 0:02:59.2]}
7. Nf3 {[%clk 0:02:54.9]} 7... Be7 {[%clk 0:02:58.5]} 8. Bg5 {[%clk 0:02:54.4]}
8... Be6 {[%clk 0:02:57.7]} 9. Bxf6 {[%clk 0:02:52.8]} 9... Bxf6 {[%clk
0:02:58.6]} 10. Nd5 {[%clk 0:02:53.3]} 10... Nd7 {[%clk 0:02:56.5]} 11. Bc4
{[%clk 0:02:53.8]} 11... O-O {[%clk 0:02:54.6]} 12. O-O {[%clk 0:02:52]} 12...
Nb6 {[%clk 0:02:40.2]} 13. Nxf6+ {[%clk 0:02:33.8]} 13... Qxf6 {[%clk
0:02:39.1]} 14. Bxe6 {[%clk 0:02:34.7]} 14... Qxe6 {[%clk 0:02:37.6]} 15. a5
{[%clk 0:02:26.5]} 15... Nd7 {[%clk 0:02:24.2]} 16. b3 {[%clk 0:02:18.4]} 16...
Nc5 {[%clk 0:02:16.4]} 17. Re1 {[%clk 0:02:14.5]} 17... Rad8 {[%clk 0:01:45.8]}
18. Qe2 {[%clk 0:02:00.4]} 18... Qg6 {[%clk 0:01:37.6]} 19. Rad1 {[%clk
0:01:53.9]} 19... Ne6 {[%clk 0:01:30.6]} 20. g3 {[%clk 0:01:54]} 20... h6 {[%clk
0:00:53.2]} 21. Nh4 {[%clk 0:01:52.9]} 21... Qg5 {[%clk 0:00:45.2]} 22. Nf5
{[%clk 0:01:51.1]} 22... d5 {[%clk 0:00:36.9]} 23. h4 {[%clk 0:01:45.3]} 23...
Qf6 {[%clk 0:00:34]} 24. Rxd5 {[%clk 0:01:44.2]} 24... Rxd5 {[%clk 0:00:33.4]}
25. exd5 {[%clk 0:01:45.1]} 25... Qxf5 {[%clk 0:00:24.4]} 26. dxe6 {[%clk
0:01:45]} 26... fxe6 {[%clk 0:00:22.5]} 27. Kg2 {[%clk 0:01:35]} 27... e4 {[%clk
0:00:21.3]} 28. Qd2 {[%clk 0:01:30.6]} 28... Qf3+ {[%clk 0:00:18.5]} 29. Kg1
{[%clk 0:01:30.2]} 29... Kh8 {[%clk 0:00:18.8]} 30. Re3 {[%clk 0:01:29.5]} 30...
Qf5 {[%clk 0:00:18.6]} 31. Qe1 {[%clk 0:01:28.9]} 31... Rc8 {[%clk 0:00:14.4]}
32. c4 {[%clk 0:01:28]} 32... Rd8 {[%clk 0:00:13.4]} 33. Rxe4 {[%clk 0:01:21.7]}
33... Qf3 {[%clk 0:00:13.6]} 34. Re3 {[%clk 0:01:20.3]} 34... Rd1 {[%clk
0:00:07.4]} 35. Rxf3 {[%clk 0:01:18.9]} 35... Rxe1+ {[%clk 0:00:07.8]} 36. Kg2
{[%clk 0:01:19.8]} 36... Ra1 {[%clk 0:00:08.1]} 37. Rf7 {[%clk 0:01:09.8]} 37...
Rxa5 {[%clk 0:00:05.7]} 38. Rxb7 {[%clk 0:01:10.5]} 38... Rc5 {[%clk 0:00:06.1]}
39. Rb6 {[%clk 0:01:06.5]} 39... e5 {[%clk 0:00:03.1]} 40. Rxa6 {[%clk
0:01:06.3]} 40... e4 {[%clk 0:00:04]} 41. Re6 {[%clk 0:01:05.8]} 41... Rc6
{[%clk 0:00:03.7]} 42. Rxc6 {[%clk 0:01:05.6]} 1-0

[Event "Early-Titled-Tuesday-Blitz-March-19-2024"]
[Site "Chess.com"]
[Date "2024.03.19"]
[Round "1"]
[White "Arteler"]
[Black "Hongjin"]
[Result "0-1"]
[WhiteElo "2388"]
[BlackElo "2725"]
[TimeControl "180+1"]
[EndTime "8:06:42 PDT"]
[Termination "Hongjin won by checkmate"]

1. Nf3 {[%clk 0:02:59.6]} 1... d5 {[%clk 0:02:59.9]} 2. c4 {[%clk 0:02:59.4]}
2... e6 {[%clk 0:03:00.1]} 3. Nc3 {[%clk 0:02:59.1]} 3... Nf6 {[%clk 0:03:00.3]}
4. d4 {[%clk 0:02:58.4]} 4... Be7 {[%clk 0:02:58.7]} 5. Bg5 {[%clk 0:02:57.3]}
5... O-O {[%clk 0:02:59]} 6. cxd5 {[%clk 0:02:56.4]} 6... exd5 {[%clk
0:02:59.1]} 7. e3 {[%clk 0:02:45.6]} 7... c6 {[%clk 0:02:57.7]} 8. Bd3 {[%clk
0:02:44.1]} 8... Nbd7 {[%clk 0:02:55.5]} 9. h3 {[%clk 0:02:43.5]} 9... Re8
{[%clk 0:02:55.9]} 10. O-O {[%clk 0:02:42.5]} 10... h6 {[%clk 0:02:56.3]} 11.
Bh4 {[%clk 0:02:42.1]} 11... a5 {[%clk 0:02:52.1]} 12. a4 {[%clk 0:02:32.9]}
12... Ne4 {[%clk 0:02:51.6]} 13. Bxe7 {[%clk 0:02:27.8]} 13... Qxe7 {[%clk
0:02:51.7]} 14. Bxe4 {[%clk 0:02:26.5]} 14... dxe4 {[%clk 0:02:52.6]} 15. Nd2
{[%clk 0:02:26.9]} 15... Nf6 {[%clk 0:02:53.1]} 16. Qc2 {[%clk 0:02:23.2]} 16...
Bf5 {[%clk 0:02:52.7]} 17. Rac1 {[%clk 0:02:14.7]} 17... Qe6 {[%clk 0:02:48.3]}
18. Qb3 {[%clk 0:02:10]} 18... Qd7 {[%clk 0:02:18.5]} 19. Nc4 {[%clk 0:01:52.8]}
19... Bxh3 {[%clk 0:02:05.2]} 20. gxh3 {[%clk 0:01:51.4]} 20... Qxh3 {[%clk
0:02:05.1]} 21. f3 {[%clk 0:01:30.4]} 21... exf3 {[%clk 0:01:14.5]} 22. Kf2
{[%clk 0:01:18.1]} 22... Ng4+ {[%clk 0:00:19.9]} 23. Ke1 {[%clk 0:01:17]} 23...
Nxe3 {[%clk 0:00:16.7]} 24. Nxe3 {[%clk 0:01:15.4]} 24... Rxe3+ {[%clk
0:00:16.9]} 25. Kd2 {[%clk 0:00:45.1]} 25... Rae8 {[%clk 0:00:15.9]} 26. Kc2
{[%clk 0:00:41.3]} 26... Qf5+ {[%clk 0:00:13.3]} 27. Kd1 {[%clk 0:00:25.1]}
27... Qd3# {[%clk 0:00:12.1]} 0-1

[Event "Early-Titled-Tuesday-Blitz-March-19-2024"]
[Site "Chess.com"]
[Date "2024.03.19"]
[Round "1"]
[White "Antipov_Mikhail_Al"]
[Black "amanjazu"]
[Result "1-0"]
[WhiteElo "2925"]
[BlackElo "2523"]
[TimeControl "180+1"]
[EndTime "8:06:43 PDT"]
[Termination "Antipov_Mikhail_Al won by resignation"]

1. e4 {[%clk 0:03:00.9]} 1... Nf6 {[%clk 0:02:59.1]} 2. e5 {[%clk 0:03:00.4]}
2... Nd5 {[%clk 0:03:00]} 3. c4 {[%clk 0:03:01]} 3... Nb6 {[%clk 0:03:00]} 4. a4
{[%clk 0:03:01.9]} 4... d6 {[%clk 0:02:55.9]} 5. a5 {[%clk 0:02:57.8]} 5... N6d7
{[%clk 0:02:55.8]} 6. exd6 {[%clk 0:02:58.3]} 6... cxd6 {[%clk 0:02:56.7]} 7. d4
{[%clk 0:02:58.5]} 7... g6 {[%clk 0:02:56.2]} 8. Nf3 {[%clk 0:02:53]} 8... Bg7
{[%clk 0:02:56.7]} 9. Be2 {[%clk 0:02:38.2]} 9... O-O {[%clk 0:02:57.6]} 10. O-O
{[%clk 0:02:37.8]} 10... Nc6 {[%clk 0:02:53]} 11. Qd2 {[%clk 0:02:18.6]} 11...
e5 {[%clk 0:02:15.7]} 12. dxe5 {[%clk 0:01:58.5]} 12... Ndxe5 {[%clk 0:01:45.8]}
13. Ra3 {[%clk 0:01:52.1]} 13... Be6 {[%clk 0:01:42.2]} 14. b3 {[%clk
0:01:45.1]} 14... d5 {[%clk 0:01:30.8]} 15. Ng5 {[%clk 0:01:38.3]} 15... Nd4
{[%clk 0:00:20.4]} 16. Nxe6 {[%clk 0:01:35.4]} 16... fxe6 {[%clk 0:00:21]} 17.
Rd1 {[%clk 0:01:28.2]} 17... Nec6 {[%clk 0:00:20.1]} 18. Bf1 {[%clk 0:01:26.5]}
18... Qf6 {[%clk 0:00:19.9]} 19. cxd5 {[%clk 0:01:21.6]} 19... exd5 {[%clk
0:00:20.8]} 20. b4 {[%clk 0:01:22]} 20... a6 {[%clk 0:00:19.7]} 21. Rd3 {[%clk
0:01:14.5]} 21... Rad8 {[%clk 0:00:17.6]} 22. Kh1 {[%clk 0:01:02.3]} 22... Rd7
{[%clk 0:00:18]} 23. f4 {[%clk 0:00:44.6]} 23... Rfd8 {[%clk 0:00:16.8]} 24. Bb2
{[%clk 0:00:37.2]} 24... Qf8 {[%clk 0:00:10.3]} 25. Bxd4 {[%clk 0:00:36.7]}
25... Nxd4 {[%clk 0:00:11.2]} 26. Rxd4 {[%clk 0:00:37.6]} 26... Bxd4 {[%clk
0:00:11.1]} 27. Qxd4 {[%clk 0:00:38.5]} 27... Re8 {[%clk 0:00:11.1]} 28. Nc3
{[%clk 0:00:39]} 28... Qf7 {[%clk 0:00:09.9]} 29. Nxd5 {[%clk 0:00:34.5]} 29...
Red8 {[%clk 0:00:10.6]} 30. Bc4 {[%clk 0:00:34.2]} 30... Kf8 {[%clk 0:00:08.5]}
31. Qh8+ {[%clk 0:00:33.6]} 31... Qg8 {[%clk 0:00:09]} 32. Qxg8+ {[%clk
0:00:34]} 1-0

[Event "Early-Titled-Tuesday-Blitz-March-19-2024"]
[Site "Chess.com"]
[Date "2024.03.19"]
[Round "1"]
[White "Christ_is_alive"]
[Black "JonaszBaum"]
[Result "0-1"]
[WhiteElo "2405"]
[BlackElo "2743"]
[TimeControl "180+1"]
[EndTime "8:06:46 PDT"]
[Termination "JonaszBaum won on time"]

1. e4 {[%clk 0:03:00.9]} 1... c5 {[%clk 0:02:52.4]} 2. Nf3 {[%clk 0:02:46.9]}
2... Nc6 {[%clk 0:02:52.1]} 3. d4 {[%clk 0:02:47]} 3... cxd4 {[%clk 0:02:53]} 4.
Nxd4 {[%clk 0:02:46.8]} 4... e5 {[%clk 0:02:53.4]} 5. Nb5 {[%clk 0:02:45.6]}
5... a6 {[%clk 0:02:53.6]} 6. Nd6+ {[%clk 0:02:44.7]} 6... Bxd6 {[%clk
0:02:53.9]} 7. Qxd6 {[%clk 0:02:44.3]} 7... Qf6 {[%clk 0:02:54.5]} 8. Qxf6
{[%clk 0:02:41.6]} 8... Nxf6 {[%clk 0:02:55.4]} 9. Nc3 {[%clk 0:02:40.3]} 9...
Nb4 {[%clk 0:02:54.8]} 10. Kd2 {[%clk 0:02:11.1]} 10... d6 {[%clk 0:02:44.3]}
11. a3 {[%clk 0:02:06.9]} 11... Nc6 {[%clk 0:02:43.7]} 12. Bc4 {[%clk
0:02:01.4]} 12... Be6 {[%clk 0:02:41.6]} 13. Ba2 {[%clk 0:01:48.7]} 13... Nd4
{[%clk 0:02:30.6]} 14. f3 {[%clk 0:01:42.4]} 14... Rc8 {[%clk 0:02:29]} 15. Kd1
{[%clk 0:01:32]} 15... Bxa2 {[%clk 0:02:22.6]} 16. Rxa2 {[%clk 0:01:30.1]} 16...
O-O {[%clk 0:02:13.1]} 17. Be3 {[%clk 0:01:28.2]} 17... Ne6 {[%clk 0:02:06.1]}
18. Ke2 {[%clk 0:01:23.7]} 18... Rfd8 {[%clk 0:01:48.1]} 19. Rd1 {[%clk
0:01:20.3]} 19... Kf8 {[%clk 0:01:46.5]} 20. Rd2 {[%clk 0:01:15]} 20... Ke7
{[%clk 0:01:35.4]} 21. Ra1 {[%clk 0:01:14.7]} 21... h5 {[%clk 0:01:35.5]} 22.
Rad1 {[%clk 0:01:13.7]} 22... Rc4 {[%clk 0:01:32]} 23. h4 {[%clk 0:00:54.6]}
23... b5 {[%clk 0:01:27.2]} 24. g3 {[%clk 0:00:46.2]} 24... b4 {[%clk
0:01:18.9]} 25. axb4 {[%clk 0:00:26.2]} 25... Rxb4 {[%clk 0:01:19.8]} 26. b3
{[%clk 0:00:22.1]} 26... Rc8 {[%clk 0:01:19.6]} 27. Na2 {[%clk 0:00:18.1]} 27...
Rb7 {[%clk 0:01:16]} 28. Nc1 {[%clk 0:00:07.5]} 28... Rbc7 {[%clk 0:01:15.4]}
29. c4 {[%clk 0:00:07.5]} 29... Ne8 {[%clk 0:01:12.3]} 30. Ra2 {[%clk
0:00:07.5]} 30... Rc6 {[%clk 0:01:12.1]} 31. Nd3 {[%clk 0:00:07.4]} 31... Rb8
{[%clk 0:01:11.3]} 32. Rb1 {[%clk 0:00:03.6]} 32... N8c7 {[%clk 0:01:05.3]} 33.
Ra4 {[%clk 0:00:03.5]} 33... f6 {[%clk 0:00:59.7]} 34. Nb4 {[%clk 0:00:03.5]}
34... Rxb4 {[%clk 0:00:43.5]} 35. Rxb4 {[%clk 0:00:02.4]} 35... Nc5 {[%clk
0:00:44.4]} 0-1

[Event "Early-Titled-Tuesday-Blitz-March-19-2024"]
[Site "Chess.com"]
[Date "2024.03.19"]
[Round "1"]
[White "geminithegreat"]
[Black "NovozhilovSemen"]
[Result "0-1"]
[WhiteElo "2231"]
[BlackElo "2621"]
[TimeControl "180+1"]
[EndTime "8:06:46 PDT"]
[Termination "NovozhilovSemen won by resignation"]

1. d4 {[%clk 0:03:00.2]} 1... Nf6 {[%clk 0:02:16]} 2. Nf3 {[%clk 0:02:59.7]}
2... e6 {[%clk 0:02:15.6]} 3. g3 {[%clk 0:02:59.1]} 3... c5 {[%clk 0:02:15.8]}
4. Bg2 {[%clk 0:02:57.6]} 4... Nc6 {[%clk 0:02:15.8]} 5. O-O {[%clk 0:02:55.4]}
5... d5 {[%clk 0:02:16.1]} 6. c4 {[%clk 0:02:54.6]} 6... dxc4 {[%clk 0:02:10.8]}
7. Na3 {[%clk 0:02:49]} 7... cxd4 {[%clk 0:02:07.1]} 8. Nxc4 {[%clk 0:02:49]}
8... Bc5 {[%clk 0:02:06.5]} 9. a3 {[%clk 0:02:46.9]} 9... a5 {[%clk 0:02:02.7]}
10. Qa4 {[%clk 0:02:02.2]} 10... O-O {[%clk 0:02:00.8]} 11. b4 {[%clk
0:01:56.8]} 11... Ba7 {[%clk 0:01:51.9]} 12. b5 {[%clk 0:01:45]} 12... Nb8
{[%clk 0:01:49.4]} 13. Rd1 {[%clk 0:01:41.5]} 13... Nbd7 {[%clk 0:01:38.8]} 14.
Nxd4 {[%clk 0:01:29.2]} 14... Qe7 {[%clk 0:01:38.2]} 15. Bb2 {[%clk 0:01:18.1]}
15... Nc5 {[%clk 0:01:29.7]} 16. Qc2 {[%clk 0:01:18.5]} 16... e5 {[%clk
0:01:30.1]} 17. Nf5 {[%clk 0:01:15.7]} 17... Qe6 {[%clk 0:01:23.5]} 18. Nfd6
{[%clk 0:01:07]} 18... e4 {[%clk 0:01:17]} 19. Nxc8 {[%clk 0:00:28.1]} 19...
Raxc8 {[%clk 0:01:15]} 20. Rd6 {[%clk 0:00:28.7]} 20... Qf5 {[%clk 0:01:10.5]}
21. Bxf6 {[%clk 0:00:23]} 21... gxf6 {[%clk 0:01:10.9]} 22. Rad1 {[%clk
0:00:20.5]} 22... Ne6 {[%clk 0:01:03.5]} 23. Bxe4 {[%clk 0:00:19.2]} 23... Qxf2+
{[%clk 0:01:03.4]} 24. Kh1 {[%clk 0:00:19.6]} 24... Qc5 {[%clk 0:00:59.4]} 25.
b6 {[%clk 0:00:07.7]} 25... Bb8 {[%clk 0:00:58.5]} 26. Bxh7+ {[%clk 0:00:07.5]}
26... Kg7 {[%clk 0:00:52.5]} 27. Rxe6 {[%clk 0:00:07.8]} 27... Qxc4 {[%clk
0:00:53]} 28. Qf5 {[%clk 0:00:03.2]} 28... Qxe6 {[%clk 0:00:51.4]} 29. Qh5
{[%clk 0:00:03.3]} 29... Rh8 {[%clk 0:00:47.4]} 30. Rd4 {[%clk 0:00:03.9]} 30...
Rxh7 {[%clk 0:00:44.9]} 31. Rg4+ {[%clk 0:00:04.3]} 31... Kh8 {[%clk 0:00:45.4]}
0-1

[Event "Early-Titled-Tuesday-Blitz-March-19-2024"]
[Site "Chess.com"]
[Date "2024.03.19"]
[Round "1"]
[White "GodzillaChessYoutube"]
[Black "KnightmareJoker"]
[Result "1-0"]
[WhiteElo "2651"]
[BlackElo "2286"]
[TimeControl "180+1"]
[EndTime "8:06:47 PDT"]
[Termination "GodzillaChessYoutube won by resignation"]

1. c4 {[%clk 0:02:33]} 1... e6 {[%clk 0:03:00]} 2. e3 {[%clk 0:02:29.3]} 2... d5
{[%clk 0:02:59.9]} 3. Nc3 {[%clk 0:02:28]} 3... Nf6 {[%clk 0:02:59.7]} 4. Nf3
{[%clk 0:02:27.8]} 4... Be7 {[%clk 0:02:57.5]} 5. b3 {[%clk 0:02:27.7]} 5... c5
{[%clk 0:02:57.7]} 6. cxd5 {[%clk 0:02:26.9]} 6... Nxd5 {[%clk 0:02:52.8]} 7.
Bb2 {[%clk 0:02:26.4]} 7... O-O {[%clk 0:02:51.6]} 8. Be2 {[%clk 0:02:26.2]}
8... Nc6 {[%clk 0:02:51.4]} 9. O-O {[%clk 0:02:25.9]} 9... Bf6 {[%clk 0:02:51]}
10. Rc1 {[%clk 0:02:25.3]} 10... b6 {[%clk 0:02:45.9]} 11. Ba1 {[%clk
0:02:23.9]} 11... Bb7 {[%clk 0:02:41.7]} 12. Ne4 {[%clk 0:02:22.5]} 12... Bxa1
{[%clk 0:02:36]} 13. Rxa1 {[%clk 0:02:23.4]} 13... Nf6 {[%clk 0:02:32.9]} 14.
Ng3 {[%clk 0:02:23.1]} 14... Ne7 {[%clk 0:02:30.1]} 15. Qc2 {[%clk 0:02:22.3]}
15... Ng6 {[%clk 0:02:26.5]} 16. Rfd1 {[%clk 0:02:22.1]} 16... Rc8 {[%clk
0:02:23.4]} 17. Qb2 {[%clk 0:02:21.6]} 17... Qe7 {[%clk 0:02:12.5]} 18. a3
{[%clk 0:02:21.5]} 18... Rfd8 {[%clk 0:02:11.6]} 19. b4 {[%clk 0:02:21.6]} 19...
c4 {[%clk 0:02:10.1]} 20. b5 {[%clk 0:02:18.4]} 20... Nd5 {[%clk 0:01:59.2]} 21.
Rdc1 {[%clk 0:02:09.8]} 21... Qc5 {[%clk 0:01:47.6]} 22. Rxc4 {[%clk 0:02:04.1]}
22... Qd6 {[%clk 0:01:37.4]} 23. Rac1 {[%clk 0:01:54.6]} 23... Rxc4 {[%clk
0:01:35.9]} 24. Bxc4 {[%clk 0:01:55.5]} 24... Nf6 {[%clk 0:01:34.6]} 25. Nd4
{[%clk 0:01:38.4]} 25... e5 {[%clk 0:01:22.6]} 26. Nc6 {[%clk 0:01:37.7]} 26...
Bxc6 {[%clk 0:01:18.2]} 27. bxc6 {[%clk 0:01:38.6]} 27... Kf8 {[%clk 0:01:12.2]}
28. Ba6 {[%clk 0:01:36.1]} 28... Nd5 {[%clk 0:01:06.4]} 29. Nf5 {[%clk
0:01:30.4]} 29... Qe6 {[%clk 0:01:01.4]} 30. e4 {[%clk 0:01:26.4]} 30... Nc7
{[%clk 0:00:58.2]} 31. Qb4+ {[%clk 0:01:25]} 31... Kg8 {[%clk 0:00:57.4]} 32.
Bc4 {[%clk 0:01:23.4]} 32... Qf6 {[%clk 0:00:54.3]} 33. g3 {[%clk 0:01:07.2]}
33... h5 {[%clk 0:00:48.3]} 34. Be2 {[%clk 0:01:04.4]} 34... h4 {[%clk
0:00:46.9]} 35. Bh5 {[%clk 0:01:04.1]} 35... hxg3 {[%clk 0:00:44.5]} 36. hxg3
{[%clk 0:01:04.3]} 36... Kh7 {[%clk 0:00:31.4]} 37. Bxg6+ {[%clk 0:00:58.6]}
37... fxg6 {[%clk 0:00:30.8]} 38. Ne3 {[%clk 0:00:48.9]} 38... Qd6 {[%clk
0:00:28.6]} 39. Qxd6 {[%clk 0:00:47.5]} 39... Rxd6 {[%clk 0:00:29.5]} 40. Nd5
{[%clk 0:00:47]} 40... Nxd5 {[%clk 0:00:24.5]} 41. exd5 {[%clk 0:00:47.9]} 41...
Rd8 {[%clk 0:00:20.2]} 42. c7 {[%clk 0:00:47.8]} 1-0

[Event "Early-Titled-Tuesday-Blitz-March-19-2024"]
[Site "Chess.com"]
[Date "2024.03.19"]
[Round "1"]
[White "Matols"]
[Black "jk13"]
[Result "0-1"]
[WhiteElo "2349"]
[BlackElo "2700"]
[TimeControl "180+1"]
[EndTime "8:06:48 PDT"]
[Termination "jk13 won on time"]

1. d4 {[%clk 0:03:00.3]} 1... Nf6 {[%clk 0:02:58.3]} 2. c4 {[%clk 0:03:00.4]}
2... e6 {[%clk 0:02:57.8]} 3. g3 {[%clk 0:03:00.8]} 3... Bb4+ {[%clk 0:02:57.3]}
4. Bd2 {[%clk 0:03:01.3]} 4... Bxd2+ {[%clk 0:02:57.1]} 5. Qxd2 {[%clk
0:03:00.6]} 5... O-O {[%clk 0:02:58]} 6. Bg2 {[%clk 0:02:59.4]} 6... d5 {[%clk
0:02:58.9]} 7. Nf3 {[%clk 0:02:53.6]} 7... c6 {[%clk 0:02:59.1]} 8. O-O {[%clk
0:02:52.4]} 8... Nbd7 {[%clk 0:02:59.7]} 9. Nc3 {[%clk 0:02:48.5]} 9... b6
{[%clk 0:03:00.3]} 10. cxd5 {[%clk 0:02:44]} 10... cxd5 {[%clk 0:03:00.2]} 11.
Rac1 {[%clk 0:02:37.8]} 11... Ba6 {[%clk 0:02:58.4]} 12. Rfe1 {[%clk 0:02:34.8]}
12... Qe7 {[%clk 0:02:54.1]} 13. Ne5 {[%clk 0:02:33.1]} 13... Rac8 {[%clk
0:02:49.6]} 14. e4 {[%clk 0:02:09]} 14... dxe4 {[%clk 0:02:49.5]} 15. Nxe4
{[%clk 0:02:08.2]} 15... Nxe4 {[%clk 0:02:37.3]} 16. Bxe4 {[%clk 0:02:06.4]}
16... Nf6 {[%clk 0:02:38]} 17. Bg2 {[%clk 0:02:00.2]} 17... Bb7 {[%clk
0:02:36.7]} 18. Nc6 {[%clk 0:01:28.6]} 18... Bxc6 {[%clk 0:02:36.7]} 19. Rxc6
{[%clk 0:01:27.4]} 19... Rxc6 {[%clk 0:02:36.2]} 20. Bxc6 {[%clk 0:01:28.3]}
20... Qd6 {[%clk 0:02:36.6]} 21. Bg2 {[%clk 0:01:25.6]} 21... Rd8 {[%clk
0:02:36.5]} 22. Rd1 {[%clk 0:01:24.8]} 22... g6 {[%clk 0:02:29.3]} 23. h3 {[%clk
0:01:23.9]} 23... h5 {[%clk 0:02:28.6]} 24. Qg5 {[%clk 0:01:18.1]} 24... Kg7
{[%clk 0:02:28.6]} 25. Bf3 {[%clk 0:01:13.5]} 25... Qb4 {[%clk 0:02:19.1]} 26.
Qe5 {[%clk 0:00:55.9]} 26... Qxb2 {[%clk 0:01:53.8]} 27. g4 {[%clk 0:00:55]}
27... hxg4 {[%clk 0:01:54.4]} 28. hxg4 {[%clk 0:00:55.5]} 28... Qa3 {[%clk
0:01:55]} 29. Kg2 {[%clk 0:00:49.2]} 29... Qd6 {[%clk 0:01:52.3]} 30. Qg5 {[%clk
0:00:44.7]} 30... Rh8 {[%clk 0:01:43.9]} 31. Qe5 {[%clk 0:00:34.3]} 31... Rd8
{[%clk 0:01:09]} 32. Qg5 {[%clk 0:00:33.2]} 32... Nh7 {[%clk 0:01:09.1]} 33. Qe3
{[%clk 0:00:30.2]} 33... Qe7 {[%clk 0:00:44.9]} 34. Rh1 {[%clk 0:00:27.5]} 34...
Ng5 {[%clk 0:00:45.1]} 35. Be2 {[%clk 0:00:09.5]} 35... Rh8 {[%clk 0:00:45]} 0-1